[Event "*** MasterClass Titled Tuesday Blitz"]
[Site "Chess.com"]
[Date "2017.12.05"]
[Round "3"]
[White "d4xaoc"]
[Black "EternallyBad"]
[Result "0-1"]
[WhiteElo "1206"]
[BlackElo "1515"]
[TimeControl "180+2"]
[EndTime "14:51:36 PST"]
[Termination "EternallyBad won by checkmate"]

1. e4 {[%clk 0:03:00]} 1... e5 {[%clk 0:03:00.3]} 2. c3 {[%clk 0:03:00.6]} 2...
Nf6 {[%clk 0:02:57.9]} 3. Bc4 {[%clk 0:02:59]} 3... Nc6 {[%clk 0:02:54.9]} 4.
Qb3 {[%clk 0:02:59.6]} 4... Qe7 {[%clk 0:02:53]} 5. Nf3 {[%clk 0:02:59.4]} 5...
g6 {[%clk 0:02:51.9]} 6. Ng5 {[%clk 0:02:59.8]} 6... Nd8 {[%clk 0:02:49]} 7. O-O
{[%clk 0:02:56.9]} 7... Bg7 {[%clk 0:02:45.9]} 8. d4 {[%clk 0:02:56.1]} 8... d6
{[%clk 0:02:42.8]} 9. Qa4+ {[%clk 0:02:49.7]} 9... Bd7 {[%clk 0:02:40.2]} 10.
Qb3 {[%clk 0:02:44.7]} 10... b6 {[%clk 0:02:36]} 11. dxe5 {[%clk 0:02:39]} 11...
dxe5 {[%clk 0:02:34.9]} 12. f4 {[%clk 0:02:36.8]} 12... exf4 {[%clk 0:02:32]}
13. Bxf4 {[%clk 0:02:34.8]} 13... O-O {[%clk 0:02:27.7]} 14. e5 {[%clk 0:02:30]}
14... Nh5 {[%clk 0:02:24.8]} 15. e6 {[%clk 0:02:12.3]} 15... fxe6 {[%clk
0:02:14.5]} 16. Be3 {[%clk 0:02:00.9]} 16... Rxf1+ {[%clk 0:01:55.2]} 17. Kxf1
{[%clk 0:02:00.6]} 17... h6 {[%clk 0:01:48.3]} 18. Nf3 {[%clk 0:01:57]} 18...
Nc6 {[%clk 0:01:48.2]} 19. Nbd2 {[%clk 0:01:55.8]} 19... Rf8 {[%clk 0:01:44.4]}
20. Re1 {[%clk 0:01:54.1]} 20... Ne5 {[%clk 0:01:37.5]} 21. Bd4 {[%clk
0:01:43.9]} 21... Nxc4 {[%clk 0:01:34.8]} 22. Qxc4 {[%clk 0:01:42.8]} 22... Bxd4
{[%clk 0:01:31.7]} 23. Qxd4 {[%clk 0:01:42.1]} 23... c5 {[%clk 0:01:22.3]} 24.
Qe4 {[%clk 0:01:36.8]} 24... Rf6 {[%clk 0:01:13.3]} 25. Kg1 {[%clk 0:01:36.5]}
25... Qd6 {[%clk 0:01:02.8]} 26. Nc4 {[%clk 0:01:31.3]} 26... Qd5 {[%clk
0:00:58]} 27. Qe2 {[%clk 0:01:13.5]} 27... Nf4 {[%clk 0:00:55.4]} 28. Qe5 {[%clk
0:00:56]} 28... Rf5 {[%clk 0:00:33.4]} 29. Qxd5 {[%clk 0:00:55.7]} 29... Rxd5
{[%clk 0:00:33.5]} 30. Nce5 {[%clk 0:00:54.4]} 30... Bc8 {[%clk 0:00:32.7]} 31.
g3 {[%clk 0:00:52.3]} 31... Nd3 {[%clk 0:00:33.7]} 32. Re3 {[%clk 0:00:50.8]}
32... Nxe5 {[%clk 0:00:31.8]} 33. Nxe5 {[%clk 0:00:49.8]} 33... Rd2 {[%clk
0:00:31.6]} 34. Nxg6 {[%clk 0:00:49.1]} 34... Kg7 {[%clk 0:00:31.8]} 35. Ne5
{[%clk 0:00:47.6]} 35... Rxb2 {[%clk 0:00:32.1]} 36. a4 {[%clk 0:00:47.8]} 36...
Ra2 {[%clk 0:00:32.7]} 37. Rf3 {[%clk 0:00:47.7]} 37... Rxa4 {[%clk 0:00:26.5]}
38. Rf7+ {[%clk 0:00:48.2]} 38... Kg8 {[%clk 0:00:26.9]} 39. Rc7 {[%clk
0:00:48.4]} 39... Ba6 {[%clk 0:00:26.1]} 40. Rxa7 {[%clk 0:00:46.7]} 40... Ra1+
{[%clk 0:00:27]} 41. Kg2 {[%clk 0:00:47.4]} 41... Bf1+ {[%clk 0:00:27.2]} 42.
Kf2 {[%clk 0:00:45.9]} 42... Rxa7 {[%clk 0:00:28.1]} 43. Kxf1 {[%clk 0:00:46.7]}
43... Ra1+ {[%clk 0:00:28.2]} 44. Kg2 {[%clk 0:00:46.9]} 44... Ra3 {[%clk
0:00:28.4]} 45. c4 {[%clk 0:00:47.3]} 45... Re3 {[%clk 0:00:28.1]} 46. Nf3
{[%clk 0:00:41.7]} 46... Rc3 {[%clk 0:00:28.3]} 47. Ne5 {[%clk 0:00:42.2]} 47...
Re3 {[%clk 0:00:29.2]} 48. Nf3 {[%clk 0:00:42.4]} 48... Re4 {[%clk 0:00:30.2]}
49. Nd2 {[%clk 0:00:42.1]} 49... Re2+ {[%clk 0:00:31]} 50. Kf3 {[%clk
0:00:42.2]} 50... Rxd2 {[%clk 0:00:32.4]} 51. Ke3 {[%clk 0:00:42.9]} 51... Rxh2
{[%clk 0:00:33.5]} 52. Kd3 {[%clk 0:00:43]} 52... Rh3 {[%clk 0:00:34.1]} 53. Ke4
{[%clk 0:00:43.6]} 53... Rxg3 {[%clk 0:00:35.4]} 54. Ke5 {[%clk 0:00:44.4]}
54... Rc3 {[%clk 0:00:36.5]} 55. Kxe6 {[%clk 0:00:44.9]} 55... Rxc4 {[%clk
0:00:38.1]} 56. Kd6 {[%clk 0:00:45.9]} 56... b5 {[%clk 0:00:39.7]} 57. Kd5
{[%clk 0:00:46.2]} 57... h5 {[%clk 0:00:41.2]} 58. Kc6 {[%clk 0:00:45.6]} 58...
h4 {[%clk 0:00:42.7]} 59. Kd5 {[%clk 0:00:46.5]} 59... h3 {[%clk 0:00:42.3]} 60.
Kc6 {[%clk 0:00:47.4]} 60... h2 {[%clk 0:00:43.3]} 61. Kd5 {[%clk 0:00:48.1]}
61... h1=Q+ {[%clk 0:00:43.5]} 62. Kd6 {[%clk 0:00:48.9]} 62... Qh2+ {[%clk
0:00:44.1]} 63. Kc6 {[%clk 0:00:45.5]} 63... Qh6+ {[%clk 0:00:42.9]} 64. Kxb5
{[%clk 0:00:45.6]} 64... Rg4 {[%clk 0:00:39.4]} 65. Kxc5 {[%clk 0:00:45.7]}
65... Rg5+ {[%clk 0:00:40.2]} 66. Kd4 {[%clk 0:00:43.2]} 66... Qh4+ {[%clk
0:00:41.5]} 67. Ke3 {[%clk 0:00:43.9]} 67... Rg3+ {[%clk 0:00:43.1]} 68. Kf2
{[%clk 0:00:44.6]} 68... Qh2+ {[%clk 0:00:44.8]} 69. Kf1 {[%clk 0:00:45]} 69...
Rg1# {[%clk 0:00:46.4]} 0-1

[Event "*** MasterClass Titled Tuesday Blitz"]
[Site "Chess.com"]
[Date "2017.12.05"]
[Round "3"]
[White "evgenysharapov"]
[Black "TregubovP"]
[Result "1/2-1/2"]
[WhiteElo "2286"]
[BlackElo "2497"]
[TimeControl "180+2"]
[EndTime "14:51:47 PST"]
[Termination "Game drawn by agreement"]

1. e4 {[%clk 0:03:01.9]} 1... c5 {[%clk 0:02:54.6]} 2. Nf3 {[%clk 0:03:01.4]}
2... Nc6 {[%clk 0:02:55.5]} 3. d4 {[%clk 0:03:01.6]} 3... cxd4 {[%clk
0:02:56.5]} 4. Nxd4 {[%clk 0:03:02.6]} 4... e6 {[%clk 0:02:56.5]} 5. Nc3 {[%clk
0:03:01.1]} 5... Nf6 {[%clk 0:02:57.1]} 6. Ndb5 {[%clk 0:03:00.2]} 6... Bb4
{[%clk 0:02:56.6]} 7. a3 {[%clk 0:03:00.6]} 7... Bxc3+ {[%clk 0:02:57.2]} 8.
Nxc3 {[%clk 0:03:01.2]} 8... d5 {[%clk 0:02:58.8]} 9. exd5 {[%clk 0:03:01.1]}
9... exd5 {[%clk 0:02:59.8]} 10. Bd3 {[%clk 0:03:01.2]} 10... O-O {[%clk
0:02:59.6]} 11. O-O {[%clk 0:03:00.3]} 11... d4 {[%clk 0:03:01.2]} 12. Ne2
{[%clk 0:03:00.7]} 12... Bg4 {[%clk 0:03:01]} 13. f3 {[%clk 0:03:01.1]} 13...
Bh5 {[%clk 0:03:01.5]} 14. Nf4 {[%clk 0:03:01.6]} 14... Bg6 {[%clk 0:03:03]} 15.
Nxg6 {[%clk 0:03:02.2]} 15... hxg6 {[%clk 0:03:03.6]} 16. b4 {[%clk 0:02:59.4]}
16... Qb6 {[%clk 0:02:57]} 17. Bb2 {[%clk 0:02:56.7]} 17... Nd5 {[%clk
0:02:51.9]} 18. Qd2 {[%clk 0:02:56]} 18... Rfe8 {[%clk 0:02:49.3]} 19. Rfe1
{[%clk 0:02:55.8]} 19... Ne3 {[%clk 0:02:45.6]} 20. Kh1 {[%clk 0:02:53.3]} 20...
Rad8 {[%clk 0:02:38]} 21. Re2 {[%clk 0:02:50.7]} 21... Ne5 {[%clk 0:02:34.9]}
22. Rae1 {[%clk 0:02:43.6]} 22... Nxd3 {[%clk 0:02:29.9]} 23. Qxd3 {[%clk
0:02:36]} 23... Re6 {[%clk 0:02:20.8]} 24. c3 {[%clk 0:02:19.5]} 24... Rde8
{[%clk 0:01:52.7]} 25. Qxd4 {[%clk 0:02:02.4]} 25... Qxd4 {[%clk 0:01:45.9]} 26.
cxd4 {[%clk 0:02:02.7]} 26... Nc4 {[%clk 0:01:45]} 27. Rxe6 {[%clk 0:02:01.5]}
27... fxe6 {[%clk 0:01:45.8]} 28. Bc1 {[%clk 0:01:56.7]} 28... Kf7 {[%clk
0:01:46.8]} 29. Kg1 {[%clk 0:01:48]} 29... Rd8 {[%clk 0:01:46.7]} 30. Rd1 {[%clk
0:01:20.9]} 30... Rd5 {[%clk 0:01:47.4]} 31. Kf2 {[%clk 0:01:03.9]} 31... e5
{[%clk 0:01:47.2]} 32. Be3 {[%clk 0:00:58.4]} 32... Nxa3 {[%clk 0:01:40.1]} 33.
Ra1 {[%clk 0:00:42.5]} 33... exd4 {[%clk 0:01:24.1]} 34. Rxa3 {[%clk 0:00:41.3]}
34... dxe3+ {[%clk 0:01:25]} 35. Kxe3 {[%clk 0:00:41.7]} 35... a6 {[%clk
0:01:26.2]} 36. Rc3 {[%clk 0:00:38.8]} 36... Rb5 {[%clk 0:01:26.4]} 37. Rc4
{[%clk 0:00:38.7]} 37... g5 {[%clk 0:01:26.8]} 38. Ke4 {[%clk 0:00:35.3]} 38...
Ke6 {[%clk 0:01:26.8]} 39. g3 {[%clk 0:00:29.6]} 39... g6 {[%clk 0:01:27.7]} 40.
h3 {[%clk 0:00:29.5]} 40... Re5+ {[%clk 0:01:24.6]} 41. Kd4 {[%clk 0:00:30.1]}
41... Rd5+ {[%clk 0:01:24.1]} 42. Ke4 {[%clk 0:00:30.7]} 42... Rb5 {[%clk
0:01:23.2]} 43. f4 {[%clk 0:00:27.5]} 43... gxf4 {[%clk 0:01:23.7]} 44. Kxf4
{[%clk 0:00:26.9]} 44... Kd5 {[%clk 0:01:23.8]} 45. Re4 {[%clk 0:00:27.2]} 45...
Kd6 {[%clk 0:01:21.6]} 46. h4 {[%clk 0:00:25.5]} 46... Rf5+ {[%clk 0:01:18.7]}
47. Ke3 {[%clk 0:00:25.3]} 47... b6 {[%clk 0:01:16.4]} 48. Rg4 {[%clk
0:00:25.4]} 48... Rf6 {[%clk 0:01:14.9]} 49. Rg5 {[%clk 0:00:25]} 49... Ke6
{[%clk 0:01:09.7]} 50. g4 {[%clk 0:00:24.6]} 50... Kf7 {[%clk 0:01:10.5]} 51. h5
{[%clk 0:00:23.1]} 51... gxh5 {[%clk 0:01:09.9]} 52. gxh5 {[%clk 0:00:24]} 52...
Rc6 {[%clk 0:01:00.4]} 53. Kd3 {[%clk 0:00:22.4]} 53... b5 {[%clk 0:00:57.9]}
54. Rf5+ {[%clk 0:00:15.7]} 54... Kg7 {[%clk 0:00:58.1]} 55. Rg5+ {[%clk
0:00:15.4]} 55... Kh7 {[%clk 0:00:58.8]} 56. Rc5 {[%clk 0:00:15.4]} 56... Rd6+
{[%clk 0:00:58]} 57. Kc3 {[%clk 0:00:16.2]} 57... Rf6 {[%clk 0:00:53.9]} 58. Kb3
{[%clk 0:00:16.6]} 58... Kh6 {[%clk 0:00:53.9]} 59. Kb2 {[%clk 0:00:16.2]} 59...
Rf4 {[%clk 0:00:52.8]} 60. Kb3 {[%clk 0:00:16.2]} 60... Rf3+ {[%clk 0:00:53.4]}
61. Kb2 {[%clk 0:00:17.1]} 1/2-1/2

[Event "*** MasterClass Titled Tuesday Blitz"]
[Site "Chess.com"]
[Date "2017.12.05"]
[Round "3"]
[White "Rikikits"]
[Black "Salem-AR"]
[Result "0-1"]
[WhiteElo "2527"]
[BlackElo "2817"]
[TimeControl "180+2"]
[EndTime "14:51:54 PST"]
[Termination "Salem-AR won on time"]

1. e4 {[%clk 0:03:01.9]} 1... c5 {[%clk 0:02:58.6]} 2. Nf3 {[%clk 0:03:02.9]}
2... d6 {[%clk 0:02:55]} 3. Bb5+ {[%clk 0:03:03.5]} 3... Nd7 {[%clk 0:02:55.9]}
4. Ba4 {[%clk 0:03:02.2]} 4... Nf6 {[%clk 0:02:56.2]} 5. O-O {[%clk 0:03:02.1]}
5... g6 {[%clk 0:02:48.1]} 6. Re1 {[%clk 0:02:58.9]} 6... Bg7 {[%clk 0:02:49]}
7. c3 {[%clk 0:02:57.9]} 7... O-O {[%clk 0:02:46.4]} 8. d4 {[%clk 0:02:58.7]}
8... e5 {[%clk 0:02:47.8]} 9. d5 {[%clk 0:02:56.7]} 9... Rb8 {[%clk 0:02:27.6]}
10. c4 {[%clk 0:02:57.2]} 10... a6 {[%clk 0:02:28.1]} 11. Nc3 {[%clk 0:02:57.8]}
11... Nh5 {[%clk 0:02:16.2]} 12. Bg5 {[%clk 0:02:54.1]} 12... Bf6 {[%clk
0:02:15]} 13. Bh6 {[%clk 0:02:53.7]} 13... Ng7 {[%clk 0:02:16.1]} 14. a3 {[%clk
0:02:47.3]} 14... Nb6 {[%clk 0:02:12.7]} 15. Bb3 {[%clk 0:02:45.3]} 15... Be7
{[%clk 0:02:14.2]} 16. Ba2 {[%clk 0:02:42.8]} 16... f5 {[%clk 0:02:14.2]} 17.
Nd2 {[%clk 0:02:40.2]} 17... Bg5 {[%clk 0:02:11.8]} 18. Bxg5 {[%clk 0:02:37]}
18... Qxg5 {[%clk 0:02:13.7]} 19. b4 {[%clk 0:02:38.7]} 19... Nd7 {[%clk
0:02:14.3]} 20. bxc5 {[%clk 0:02:34.9]} 20... Nxc5 {[%clk 0:02:14.6]} 21. Nb3
{[%clk 0:02:35.8]} 21... b6 {[%clk 0:02:11.3]} 22. Rb1 {[%clk 0:02:35.1]} 22...
Bd7 {[%clk 0:02:11.3]} 23. Nxc5 {[%clk 0:02:35.7]} 23... bxc5 {[%clk 0:02:13.2]}
24. Qc1 {[%clk 0:02:28.5]} 24... Qh4 {[%clk 0:02:12.9]} 25. Rxb8 {[%clk
0:02:24.6]} 25... Rxb8 {[%clk 0:02:13.1]} 26. Bb1 {[%clk 0:02:16.8]} 26... f4
{[%clk 0:02:08.7]} 27. Bd3 {[%clk 0:02:09.1]} 27... Qd8 {[%clk 0:02:07.5]} 28.
Re2 {[%clk 0:01:58.4]} 28... Rb3 {[%clk 0:01:49]} 29. Rb2 {[%clk 0:01:36.2]}
29... Rxa3 {[%clk 0:01:42.6]} 30. Bf1 {[%clk 0:01:34.3]} 30... Qa5 {[%clk
0:01:36.8]} 31. Rb8+ {[%clk 0:01:27.3]} 31... Ne8 {[%clk 0:01:28.1]} 32. Nb1
{[%clk 0:01:12.9]} 32... Ra2 {[%clk 0:01:26.6]} 33. g3 {[%clk 0:01:06.4]} 33...
Qc7 {[%clk 0:01:18.2]} 34. Rb3 {[%clk 0:01:01.8]} 34... g5 {[%clk 0:01:15]} 35.
h4 {[%clk 0:01:00.9]} 35... Ba4 {[%clk 0:01:04.3]} 36. Rc3 {[%clk 0:00:46]}
36... gxh4 {[%clk 0:01:03.3]} 37. gxf4 {[%clk 0:00:43]} 37... Qg7+ {[%clk
0:01:03.1]} 38. Bg2 {[%clk 0:00:33.3]} 38... Nf6 {[%clk 0:00:46.6]} 39. Ra3
{[%clk 0:00:29.6]} 39... Rxa3 {[%clk 0:00:28.3]} 40. Qxa3 {[%clk 0:00:29.7]}
40... exf4 {[%clk 0:00:19.7]} 41. Kf1 {[%clk 0:00:17.3]} 41... Bd7 {[%clk
0:00:20.7]} 42. Nd2 {[%clk 0:00:12.7]} 42... Ng4 {[%clk 0:00:19.9]} 43. Bh3
{[%clk 0:00:08.9]} 43... Ne3+ {[%clk 0:00:20.3]} 44. fxe3 {[%clk 0:00:07.6]}
44... Bxh3+ {[%clk 0:00:21.9]} 45. Ke2 {[%clk 0:00:09.2]} 45... Qg2+ {[%clk
0:00:20.3]} 46. Kd3 {[%clk 0:00:09.7]} 46... fxe3 {[%clk 0:00:20.2]} 47. Kxe3
{[%clk 0:00:10.2]} 47... Qg1+ {[%clk 0:00:21.4]} 48. Kf4 {[%clk 0:00:09.3]}
48... Qh2+ {[%clk 0:00:21.3]} 49. Kg5 {[%clk 0:00:09.3]} 49... Qg3+ {[%clk
0:00:22.3]} 50. Qxg3 {[%clk 0:00:08.4]} 50... hxg3 {[%clk 0:00:23.9]} 51. Kh4
{[%clk 0:00:09.4]} 51... g2 {[%clk 0:00:21.5]} 52. Nf3 {[%clk 0:00:10.8]} 52...
a5 {[%clk 0:00:19.2]} 53. Kxh3 {[%clk 0:00:11.9]} 53... a4 {[%clk 0:00:20.8]}
54. e5 {[%clk 0:00:11.5]} 54... a3 {[%clk 0:00:20.5]} 55. exd6 {[%clk
0:00:11.5]} 55... Kf8 {[%clk 0:00:21.8]} 56. d7 {[%clk 0:00:10.8]} 56... Ke7
{[%clk 0:00:22.8]} 57. d6+ {[%clk 0:00:12.7]} 57... Kxd7 {[%clk 0:00:23.4]} 58.
Kxg2 {[%clk 0:00:11.5]} 58... a2 {[%clk 0:00:24.2]} 0-1

[Event "*** MasterClass Titled Tuesday Blitz"]
[Site "Chess.com"]
[Date "2017.12.05"]
[Round "3"]
[White "1e41-0"]
[Black "Hasangatin_Ramil"]
[Result "1/2-1/2"]
[WhiteElo "2357"]
[BlackElo "2404"]
[TimeControl "180+2"]
[EndTime "14:52:01 PST"]
[Termination "Game drawn - insufficient material"]

1. d4 {[%clk 0:03:01.9]} 1... d6 {[%clk 0:02:58.5]} 2. e4 {[%clk 0:03:01.7]}
2... Nf6 {[%clk 0:02:58.6]} 3. Nc3 {[%clk 0:03:02.3]} 3... g6 {[%clk 0:02:59.9]}
4. Be3 {[%clk 0:03:02.7]} 4... Bg7 {[%clk 0:03:00.5]} 5. Qd2 {[%clk 0:02:58]}
5... Ng4 {[%clk 0:03:00.4]} 6. Bg5 {[%clk 0:02:58.3]} 6... h6 {[%clk 0:03:00.8]}
7. Bh4 {[%clk 0:02:59.3]} 7... g5 {[%clk 0:03:02]} 8. Bg3 {[%clk 0:02:59.6]}
8... c6 {[%clk 0:03:00.8]} 9. f3 {[%clk 0:02:51.2]} 9... Nf6 {[%clk 0:03:00.6]}
10. Nge2 {[%clk 0:02:51.1]} 10... b5 {[%clk 0:03:00.8]} 11. h4 {[%clk 0:02:50]}
11... g4 {[%clk 0:02:54.6]} 12. a3 {[%clk 0:02:45.1]} 12... Qa5 {[%clk
0:02:49.7]} 13. Nf4 {[%clk 0:02:29.3]} 13... Nbd7 {[%clk 0:02:43.8]} 14. d5
{[%clk 0:02:28.8]} 14... Bb7 {[%clk 0:02:41.6]} 15. b4 {[%clk 0:02:28.7]} 15...
Qc7 {[%clk 0:02:29.1]} 16. dxc6 {[%clk 0:02:27.4]} 16... Bxc6 {[%clk 0:02:31]}
17. Bxb5 {[%clk 0:02:23.8]} 17... Bxb5 {[%clk 0:02:32]} 18. Nxb5 {[%clk
0:02:24.5]} 18... Qc4 {[%clk 0:02:31.6]} 19. Qd3 {[%clk 0:02:13.8]} 19... Qxd3
{[%clk 0:02:31.5]} 20. Nxd3 {[%clk 0:02:12.9]} 20... Rc8 {[%clk 0:02:26.5]} 21.
O-O-O {[%clk 0:02:06.8]} 21... a6 {[%clk 0:02:25.1]} 22. Nd4 {[%clk 0:01:59.5]}
22... Nxe4 {[%clk 0:02:24.2]} 23. fxe4 {[%clk 0:01:55.5]} 23... Bxd4 {[%clk
0:02:24.4]} 24. Nf2 {[%clk 0:01:51.7]} 24... Be3+ {[%clk 0:02:15.7]} 25. Kb1
{[%clk 0:01:52.3]} 25... h5 {[%clk 0:02:17]} 26. Rd3 {[%clk 0:01:52.1]} 26...
Bxf2 {[%clk 0:02:11.7]} 27. Bxf2 {[%clk 0:01:52.8]} 27... Ne5 {[%clk 0:02:13.2]}
28. Bd4 {[%clk 0:01:47.7]} 28... Nxd3 {[%clk 0:02:12]} 29. Bxh8 {[%clk
0:01:48.5]} 29... Nf2 {[%clk 0:02:12.5]} 30. Re1 {[%clk 0:01:43.2]} 30... f6
{[%clk 0:02:13]} 31. Bg7 {[%clk 0:01:41.1]} 31... Rc4 {[%clk 0:02:06.4]} 32. Kb2
{[%clk 0:01:29.4]} 32... Nxe4 {[%clk 0:02:06.9]} 33. Kb3 {[%clk 0:01:28.3]}
33... d5 {[%clk 0:02:04.6]} 34. Bh6 {[%clk 0:01:22]} 34... Kd7 {[%clk
0:02:01.6]} 35. Rd1 {[%clk 0:01:21.2]} 35... Kc6 {[%clk 0:02:02.1]} 36. a4
{[%clk 0:01:18.4]} 36... Rc3+ {[%clk 0:02:02.3]} 37. Kb2 {[%clk 0:01:19.7]}
37... e6 {[%clk 0:02:00.9]} 38. Re1 {[%clk 0:01:11]} 38... Rc4 {[%clk
0:01:50.5]} 39. Kb3 {[%clk 0:00:57.8]} 39... e5 {[%clk 0:01:47.3]} 40. Rf1
{[%clk 0:00:52.7]} 40... Rc3+ {[%clk 0:01:43.7]} 41. Kb2 {[%clk 0:00:54.1]}
41... Rg3 {[%clk 0:01:41.4]} 42. Bg7 {[%clk 0:00:53.7]} 42... Rxg2 {[%clk
0:01:34.9]} 43. Bxf6 {[%clk 0:00:55.1]} 43... Kd6 {[%clk 0:01:36]} 44. Bg5
{[%clk 0:00:53.5]} 44... Rf2 {[%clk 0:01:25.2]} 45. Rh1 {[%clk 0:00:49.8]} 45...
g3 {[%clk 0:01:24.1]} 46. b5 {[%clk 0:00:47.5]} 46... axb5 {[%clk 0:01:22.4]}
47. axb5 {[%clk 0:00:49.4]} 47... g2 {[%clk 0:01:23.3]} 48. Rg1 {[%clk
0:00:47.7]} 48... Nxg5 {[%clk 0:01:21.4]} 49. hxg5 {[%clk 0:00:49.6]} 49... d4
{[%clk 0:00:39.9]} 50. g6 {[%clk 0:00:46.8]} 50... d3 {[%clk 0:00:39.5]} 51. g7
{[%clk 0:00:45.4]} 51... Rxc2+ {[%clk 0:00:39.7]} 52. Kb3 {[%clk 0:00:41.6]}
52... Rc8 {[%clk 0:00:41.6]} 53. Rxg2 {[%clk 0:00:42.6]} 53... Rg8 {[%clk
0:00:42.1]} 54. Kc3 {[%clk 0:00:41.2]} 54... e4 {[%clk 0:00:36.8]} 55. Kd4
{[%clk 0:00:35.6]} 55... h4 {[%clk 0:00:15.5]} 56. Kxe4 {[%clk 0:00:35.2]} 56...
h3 {[%clk 0:00:15.1]} 57. Rg6+ {[%clk 0:00:34.2]} 57... Kc7 {[%clk 0:00:13.2]}
58. Kxd3 {[%clk 0:00:33.8]} 58... h2 {[%clk 0:00:13.3]} 59. Rh6 {[%clk
0:00:34.2]} 59... Rxg7 {[%clk 0:00:14.5]} 60. Rxh2 {[%clk 0:00:34.8]} 60... Kb6
{[%clk 0:00:15.4]} 61. Rh5 {[%clk 0:00:34]} 61... Rg4 {[%clk 0:00:15]} 62. Rf5
{[%clk 0:00:33.9]} 62... Rh4 {[%clk 0:00:15.6]} 63. Ke3 {[%clk 0:00:35.1]} 63...
Rg4 {[%clk 0:00:16.7]} 64. Kd3 {[%clk 0:00:35.8]} 64... Rh4 {[%clk 0:00:17.6]}
65. Kc3 {[%clk 0:00:37.3]} 65... Rg4 {[%clk 0:00:18.2]} 66. Re5 {[%clk
0:00:38.7]} 66... Rh4 {[%clk 0:00:19.2]} 67. Rd5 {[%clk 0:00:38.7]} 67... Rg4
{[%clk 0:00:20]} 68. Re5 {[%clk 0:00:39.8]} 68... Rh4 {[%clk 0:00:21]} 69. Kd3
{[%clk 0:00:41.1]} 69... Rg4 {[%clk 0:00:22.1]} 70. Ke3 {[%clk 0:00:42.6]} 70...
Rh4 {[%clk 0:00:23.3]} 71. Kf3 {[%clk 0:00:43.9]} 71... Rb4 {[%clk 0:00:23.6]}
72. Ke3 {[%clk 0:00:44.9]} 72... Rxb5 {[%clk 0:00:24.7]} 73. Rxb5+ {[%clk
0:00:45.8]} 73... Kxb5 {[%clk 0:00:25.3]} 1/2-1/2

[Event "*** MasterClass Titled Tuesday Blitz"]
[Site "Chess.com"]
[Date "2017.12.05"]
[Round "3"]
[White "EndgameGrinder"]
[Black "Jahonas"]
[Result "1-0"]
[WhiteElo "2430"]
[BlackElo "2219"]
[TimeControl "180+2"]
[EndTime "14:52:07 PST"]
[Termination "EndgameGrinder won by resignation"]

1. e4 {[%clk 0:03:01.9]} 1... c6 {[%clk 0:03:00.5]} 2. d4 {[%clk 0:03:01.4]}
2... d5 {[%clk 0:03:00.6]} 3. exd5 {[%clk 0:03:02.5]} 3... cxd5 {[%clk
0:03:01.5]} 4. c4 {[%clk 0:03:04.1]} 4... Nf6 {[%clk 0:03:02.1]} 5. Nc3 {[%clk
0:03:05.6]} 5... Nc6 {[%clk 0:03:01.7]} 6. Nf3 {[%clk 0:03:07.2]} 6... Bg4
{[%clk 0:03:02.6]} 7. cxd5 {[%clk 0:03:06.1]} 7... Nxd5 {[%clk 0:03:03.2]} 8.
Qb3 {[%clk 0:03:07.7]} 8... Bxf3 {[%clk 0:03:04]} 9. gxf3 {[%clk 0:03:08]} 9...
e6 {[%clk 0:03:04.9]} 10. Qxb7 {[%clk 0:03:05.5]} 10... Nxd4 {[%clk 0:03:03.6]}
11. Bb5+ {[%clk 0:03:06.8]} 11... Nxb5 {[%clk 0:03:04.3]} 12. Qc6+ {[%clk
0:03:07.9]} 12... Ke7 {[%clk 0:03:03.4]} 13. Qxb5 {[%clk 0:03:08.1]} 13... Qd7
{[%clk 0:02:44.6]} 14. Nxd5+ {[%clk 0:03:08.3]} 14... Qxd5 {[%clk 0:02:38.4]}
15. Qxd5 {[%clk 0:03:09.8]} 15... exd5 {[%clk 0:02:39.1]} 16. O-O {[%clk
0:03:11.7]} 16... Kf6 {[%clk 0:02:22.2]} 17. Rd1 {[%clk 0:03:11.6]} 17... Rd8
{[%clk 0:02:22.3]} 18. Be3 {[%clk 0:03:09.3]} 18... Rd7 {[%clk 0:02:20.4]} 19.
Rac1 {[%clk 0:03:09.8]} 19... Bd6 {[%clk 0:02:12.7]} 20. Rc6 {[%clk 0:02:56.2]}
20... Ke6 {[%clk 0:01:59.5]} 21. h3 {[%clk 0:02:46.3]} 21... Rb8 {[%clk
0:01:47.6]} 22. b3 {[%clk 0:02:40]} 22... Rb5 {[%clk 0:01:46.6]} 23. Ra6 {[%clk
0:02:36.7]} 23... Rbb7 {[%clk 0:01:32.9]} 24. Kf1 {[%clk 0:02:37.7]} 24... f6
{[%clk 0:01:27.8]} 25. Ke2 {[%clk 0:02:33.2]} 25... Rdc7 {[%clk 0:01:12.5]} 26.
Rd2 {[%clk 0:02:22.7]} 26... g5 {[%clk 0:01:10.9]} 27. f4 {[%clk 0:01:40.2]}
27... gxf4 {[%clk 0:00:50.6]} 28. Bxf4 {[%clk 0:01:40.6]} 28... Rb6 {[%clk
0:00:49.9]} 29. Ra4 {[%clk 0:01:14.9]} 29... Bxf4 {[%clk 0:00:47]} 30. Rxf4
{[%clk 0:01:15.3]} 30... Ke5 {[%clk 0:00:45.6]} 31. Rfd4 {[%clk 0:01:09.8]}
31... Rd6 {[%clk 0:00:32.8]} 32. f4+ {[%clk 0:01:06.9]} 32... Ke6 {[%clk
0:00:33.7]} 33. Kd3 {[%clk 0:00:53.9]} 33... Rc1 {[%clk 0:00:34.2]} 34. Ra4
{[%clk 0:00:52.3]} 34... a6 {[%clk 0:00:34.3]} 35. Kd4 {[%clk 0:00:50.2]} 35...
Rh1 {[%clk 0:00:34.1]} 36. Rd3 {[%clk 0:00:48.8]} 36... Kf5 {[%clk 0:00:34.7]}
37. Kc5 {[%clk 0:00:48.6]} 37... Rd8 {[%clk 0:00:35.7]} 38. Rxd5+ {[%clk
0:00:33]} 38... Rxd5+ {[%clk 0:00:34.5]} 39. Kxd5 {[%clk 0:00:34.9]} 39... Rxh3
{[%clk 0:00:35]} 40. Rxa6 {[%clk 0:00:36.2]} 40... Rd3+ {[%clk 0:00:31.4]} 41.
Kc4 {[%clk 0:00:35.4]} 41... Rd8 {[%clk 0:00:28.2]} 42. b4 {[%clk 0:00:36.5]}
42... h5 {[%clk 0:00:28.3]} 43. b5 {[%clk 0:00:37.8]} 43... h4 {[%clk
0:00:29.5]} 44. b6 {[%clk 0:00:26.7]} 44... Kxf4 {[%clk 0:00:23.3]} 45. b7
{[%clk 0:00:26.8]} 45... Rb8 {[%clk 0:00:22.9]} 46. Rxf6+ {[%clk 0:00:26.6]}
46... Kg5 {[%clk 0:00:22.5]} 47. Rf7 {[%clk 0:00:28]} 47... h3 {[%clk
0:00:22.9]} 48. Rh7 {[%clk 0:00:20.3]} 48... h2 {[%clk 0:00:21.2]} 49. Rxh2
{[%clk 0:00:19.5]} 49... Rxb7 {[%clk 0:00:21.9]} 50. a4 {[%clk 0:00:18.8]} 50...
Kf5 {[%clk 0:00:20.5]} 51. Re2 {[%clk 0:00:19.8]} 51... Rb1 {[%clk 0:00:20.2]}
52. a5 {[%clk 0:00:20.4]} 52... Kf6 {[%clk 0:00:20.8]} 53. Kc5 {[%clk
0:00:20.3]} 53... Kf7 {[%clk 0:00:20.7]} 54. a6 {[%clk 0:00:21.3]} 54... Kf8
{[%clk 0:00:17.7]} 55. a7 {[%clk 0:00:21.2]} 55... Rc1+ {[%clk 0:00:18.5]} 56.
Kb6 {[%clk 0:00:22.5]} 56... Rb1+ {[%clk 0:00:19.5]} 57. Kc7 {[%clk 0:00:23.9]}
57... Rc1+ {[%clk 0:00:20.7]} 58. Kb8 {[%clk 0:00:25.3]} 58... Rb1+ {[%clk
0:00:21.7]} 59. Ka8 {[%clk 0:00:26.7]} 59... Kf7 {[%clk 0:00:22.4]} 60. Re3
{[%clk 0:00:27.2]} 60... Kf8 {[%clk 0:00:21.7]} 61. Re2 {[%clk 0:00:28.8]} 61...
Kf7 {[%clk 0:00:22.7]} 62. Re4 {[%clk 0:00:30.5]} 62... Kf8 {[%clk 0:00:23.7]}
63. Rh4 {[%clk 0:00:30.9]} 63... Ke7 {[%clk 0:00:24.6]} 64. Rh8 {[%clk
0:00:31.3]} 64... Kd7 {[%clk 0:00:25.3]} 65. Rb8 {[%clk 0:00:32.3]} 65... Ra1
{[%clk 0:00:23.6]} 66. Kb7 {[%clk 0:00:27.2]} 66... Rb1+ {[%clk 0:00:23.8]} 67.
Ka6 {[%clk 0:00:28.6]} 67... Ra1+ {[%clk 0:00:24.8]} 68. Kb6 {[%clk 0:00:29.8]}
68... Rb1+ {[%clk 0:00:23.5]} 69. Kc5 {[%clk 0:00:30.8]} 1-0